bitfinex/quotes_BTCUSD_20260103
["timestamp","ask_amount","ask_price","bid_price","bid_amount"]
[1767477886535,0.01105131,90487.0,90472.0,0.01636]
[1767477886536,0.01105131,90487.0,90472.0,0.02741314]
[1767477886756,0.01105143,90486.0,90472.0,0.02741314]
[1767477887552,0.01105143,90486.0,90472.0,0.01636]
[1767477887773,0.01105131,90487.0,90472.0,0.02741314]
[1767477888375,0.01105143,90486.0,90472.0,0.02741314]
[1767477888516,0.01105131,90487.0,90472.0,0.02741314]
[1767477888721,0.01105131,90487.0,90472.0,0.01636]
[1767477889018,0.01105143,90486.0,90472.0,0.02741314]
[1767477890677,0.01105143,90486.0,90472.0,0.01636]
[1767477891215,0.01105143,90486.0,90472.0,0.02741314]
[1767477892064,0.01105143,90486.0,90473.0,0.04575568]
[1767477893652,0.01105131,90487.0,90473.0,0.04575568]
[1767477893847,0.01105143,90486.0,90473.0,0.04575568]
[1767477894295,0.01105167,90484.0,90473.0,0.04575568]
[1767477894483,0.01105314,90472.0,90458.0,0.06787568]
[1767477894684,0.01105338,90470.0,90459.0,0.04575568]
[1767477895085,0.01105326,90471.0,90459.0,0.04575568]
[1767477895291,0.01105326,90471.0,90458.0,0.02212]
[1767477895626,0.06631935,90472.0,90458.0,0.02212]
[1767477895830,0.01105326,90471.0,90457.0,0.00010735]
[1767477896032,0.01105412,90464.0,90457.0,0.00010735]
[1767477896234,0.01105387,90466.0,90457.0,0.00010735]
[1767477896369,0.01105375,90467.0,90457.0,0.00010735]
[1767477896573,0.01105412,90464.0,90457.0,0.00010735]
[1767477896830,0.01105375,90467.0,90457.0,0.00010735]
[1767477897029,0.01105387,90466.0,90457.0,0.00010735]
[1767477897169,0.01105399,90465.0,90457.0,0.00010735]
[1767477900380,0.01105412,90464.0,90457.0,0.00010735]
[1767477900611,0.01105424,90463.0,90457.0,0.00010735]
[1767477900821,0.01105412,90464.0,90457.0,0.00010735]
[1767477901350,0.01105399,90465.0,90457.0,0.00010735]
[1767477901779,0.01105387,90466.0,90457.0,0.00010735]
[1767477901960,0.01105399,90465.0,90457.0,0.00010735]
[1767477902157,0.01105399,90465.0,90232.0,0.59571785]
[1767477902158,0.01105485,90458.0,90446.0,0.04587069]
[1767477902359,0.01105497,90457.0,90446.0,0.00050983]
[1767477902590,0.01105509,90456.0,90446.0,0.00050983]
[1767477902826,0.01105522,90455.0,90446.0,0.00050983]
[1767477902980,0.01105595,90449.0,90446.0,0.00050983]
[1767477903209,0.05528099,90447.0,90446.0,0.00050983]
[1767477903505,0.01105595,90449.0,90447.0,0.000999]
[1767477903680,0.02212,90450.0,90447.0,0.000999]
[1767477903887,0.03317583,90450.0,90446.0,0.00050983]
[1767477904092,0.02212,90450.0,90446.0,0.00050983]
[1767477904651,0.021121,90450.0,90446.0,0.00050983]
[1767477905946,0.00310262,90450.0,90446.0,0.00050983]
[1767477906106,0.01105424,90463.0,90450.0,0.01]
[1767477906306,0.03317436,90462.0,90451.0,0.04571889]
[1767477906533,0.02212,90461.0,90451.0,0.04571889]
[1767477906945,0.02212,90460.0,90451.0,0.04571889]
[1767477907325,0.02207318,90460.0,90451.0,0.04571889]
[1767477908411,0.02207318,90460.0,90446.0,0.00050983]
[1767477908612,0.02207318,90460.0,90434.0,0.04571889]
[1767477908613,0.01105595,90449.0,90434.0,0.04571889]
[1767477908817,0.06669405,90449.0,90434.0,0.04571889]
[1767477909052,0.05528104,90447.0,90434.0,0.04571889]
[1767477909254,0.01105632,90446.0,90434.0,0.04571889]
[1767477909481,0.01105619,90447.0,90434.0,0.04571889]
[1767477909683,0.01141405,90449.0,90434.0,0.04571889]
[1767477909887,0.0003581,90449.0,90435.0,0.01105766]
[1767477910247,0.01141405,90449.0,90435.0,0.05677655]
[1767477910445,0.01141405,90449.0,90435.0,0.01105766]
[1767477910675,0.0003581,90449.0,90435.0,0.01105766]
[1767477911537,0.05856645,90449.0,90435.0,0.01105766]
[1767477912141,0.01141405,90449.0,90435.0,0.05677655]
[1767477912819,0.0003581,90449.0,90435.0,0.05677655]
[1767477913259,0.0475105,90449.0,90435.0,0.01105766]
[1767477914121,0.0471524,90447.0,90433.0,0.01105791]
[1767477914333,0.0471524,90447.0,90434.0,0.01105778]
[1767477914555,0.0471524,90447.0,90430.0,0.06634965]
[1767477914556,0.0471524,90442.0,90428.0,0.01121032]
[1767477914688,0.0481514,90434.0,90429.0,0.03317839]
[1767477914897,0.01105644,90445.0,90430.0,0.01105827]
[1767477915235,0.01105644,90445.0,90430.0,0.02212]
[1767477915236,0.0471524,90442.0,90430.0,0.02212]
[1767477915472,0.0110568,90442.0,90430.0,0.02212]
[1767477915824,0.01105693,90441.0,90430.0,0.02212]
[1767477916039,0.0110568,90442.0,90430.0,0.02212]
[1767477916210,0.01105668,90443.0,90430.0,0.02212]
[1767477916211,0.01105656,90444.0,90430.0,0.03317827]
[1767477916412,0.22109919,90458.0,90445.0,0.04571889]
[1767477916616,0.22109919,90458.0,90445.0,0.03571889]
[1767477916819,0.06633693,90448.0,90431.0,0.05677704]
[1767477917046,0.01105607,90448.0,90433.0,0.04571889]
[1767477917278,0.01105595,90449.0,90435.0,0.04571889]
[1767477917480,0.02212,90451.0,90435.0,0.04571889]
[1767477917788,0.01105558,90452.0,90436.0,0.01105754]
[1767477917988,0.01105558,90452.0,90437.0,0.01105742]
[1767477918144,0.01105558,90452.0,90436.0,0.01105754]
[1767477918352,0.0110557,90451.0,90436.0,0.01105754]
[1767477918559,0.01105558,90452.0,90436.0,0.01105754]
[1767477919165,0.0582081,90451.0,90435.0,0.01105766]
[1767477919371,0.0110557,90451.0,90435.0,0.01105766]
[1767477919605,0.0471524,90450.0,90435.0,0.01105766]
[1767477919762,0.0471524,90450.0,90434.0,0.01105778]
[1767477919963,0.0471524,90450.0,90435.0,0.01105766]
[1767477920380,0.01105558,90452.0,90435.0,0.01105766]
[1767477920585,0.0110557,90451.0,90435.0,0.01105766]
[1767477921646,0.01105558,90452.0,90435.0,0.01105766]
[1767477922147,0.0110557,90451.0,90433.0,0.01105791]
[1767477922302,0.01105595,90449.0,90433.0,0.01105791]
[1767477922502,0.01105595,90449.0,90432.0,0.10395104]
[1767477922741,0.01105583,90450.0,90433.0,0.01105791]
[1767477923327,0.01105583,90450.0,90432.0,0.09289301]
[1767477923655,0.01105595,90449.0,90432.0,0.10395104]
[1767477923801,0.01105583,90450.0,90434.0,0.01105778]
[1767477924013,0.01105583,90450.0,90433.0,0.01105791]
[1767477924570,0.01105595,90449.0,90433.0,0.01105791]
[1767477924911,0.01105583,90450.0,90433.0,0.01105791]
[1767477925117,0.0110557,90451.0,90435.0,0.01105766]
[1767477925318,0.0110557,90451.0,90434.0,0.01105778]
[1767477926312,0.01105583,90450.0,90434.0,0.01105778]
[1767477926545,0.01105583,90450.0,90433.0,0.03317791]
[1767477926740,0.0110557,90451.0,90434.0,0.01105778]
[1767477927690,0.04700841,90450.0,90434.0,0.01105778]
[1767477928551,0.05806424,90450.0,90434.0,0.01105778]
[1767477928751,0.04700841,90450.0,90435.0,0.01105766]
[1767477928983,0.01105558,90452.0,90435.0,0.01105766]
[1767477929186,0.0110557,90451.0,90434.0,0.00014399]
[1767477929473,0.0582081,90451.0,90434.0,0.00014399]
[1767477929830,0.0582081,90451.0,90440.0,0.31469228]
[1767477930035,0.0582081,90451.0,90434.0,0.01120177]
[1767477930230,0.04710708,90450.0,90434.0,0.01105778]
[1767477932749,0.04710708,90450.0,90433.0,0.03317791]
[1767477932750,0.04751304,90445.0,90431.0,0.02212]
[1767477933734,0.05856948,90445.0,90431.0,0.02212]
[1767477934122,0.04751304,90445.0,90431.0,0.02212]
[1767477934691,0.01105632,90446.0,90431.0,0.02212]
[1767477935960,0.01105632,90446.0,90430.0,0.04580039]
[1767477936119,0.01105632,90446.0,90430.0,0.07908613]
[1767477936470,0.01105595,90449.0,90432.0,0.05685842]
[1767477936677,0.05856874,90451.0,90434.0,0.01105778]
[1767477937199,0.04751304,90451.0,90435.0,0.01105766]
[1767477937386,0.05856874,90451.0,90434.0,0.01105778]
[1767477937586,0.05856874,90451.0,90435.0,0.01105766]
[1767477937810,0.05856899,90449.0,90431.0,0.01105815]
[1767477938036,0.04751304,90449.0,90433.0,0.01105791]
[1767477938804,0.05856899,90449.0,90433.0,0.01105791]
[1767477939015,0.04751304,90449.0,90433.0,0.01105791]
[1767477939236,0.04751304,90447.0,90432.0,0.01105803]
[1767477939493,0.04751304,90447.0,90430.0,0.34797802]
[1767477939696,0.04751304,90447.0,90430.0,0.33691975]
[1767477939854,0.05856923,90447.0,90430.0,0.34797802]
[1767477941001,0.05856923,90447.0,90431.0,0.01105815]
[1767477941002,0.04751304,90447.0,90431.0,0.01105815]
[1767477941202,0.05856923,90447.0,90431.0,0.01105815]
[1767477942496,0.04751304,90447.0,90431.0,0.06634888]
[1767477943073,0.04751304,90447.0,90431.0,0.01105815]
[1767477944328,0.04751304,90447.0,90432.0,0.01105803]
[1767477944712,0.04751304,90447.0,90433.0,0.01105791]
[1767477946056,0.04751304,90447.0,90435.0,0.01105766]
[1767477946258,0.04751304,90447.0,90434.0,0.01105778]
[1767477946646,0.01105583,90450.0,90434.0,0.01105778]
[1767477946842,0.0110557,90451.0,90434.0,0.01105778]
[1767477947303,0.01105583,90450.0,90433.0,0.01105791]
[1767477947975,0.05856911,90448.0,90432.0,0.01105803]
[1767477948175,0.04751304,90448.0,90432.0,0.06634807]
[1767477948382,0.04751304,90448.0,90433.0,0.01105791]
[1767477948628,0.01105595,90449.0,90433.0,0.01105791]
[1767477948784,0.01105595,90449.0,90432.0,0.05685842]
[1767477949180,0.01105595,90449.0,90433.0,0.01105791]
[1767477950364,0.05856899,90449.0,90433.0,0.01105791]
[1767477951220,0.05856899,90449.0,90432.0,0.01105803]
[1767477951567,0.05856899,90449.0,90433.0,0.01105791]
[1767477951772,0.01105607,90448.0,90432.0,0.01105803]
[1767477951976,0.05856911,90448.0,90432.0,0.01105803]
[1767477952358,0.04751304,90448.0,90433.0,0.01105791]
[1767477953086,0.04751304,90448.0,90432.0,0.01105803]
[1767477953484,0.04751304,90448.0,90433.0,0.01105791]
[1767477953660,0.01105595,90449.0,90433.0,0.01105791]
[1767477953842,0.01105583,90450.0,90433.0,0.01105791]
[1767477954214,0.01105595,90449.0,90433.0,0.01105791]
[1767477954742,0.05856899,90449.0,90433.0,0.01105791]
[1767477954927,0.01105607,90448.0,90432.0,0.05685842]
[1767477955344,0.05856899,90449.0,90433.0,0.01105791]
[1767477955840,0.05856899,90449.0,90432.0,0.05685842]
[1767477956054,0.04751304,90447.0,90430.0,0.34797802]
[1767477956204,0.04751304,90447.0,90432.0,0.01105803]
[1767477957963,0.04751304,90447.0,90431.0,0.01105815]
[1767477958194,0.04751304,90447.0,90432.0,0.01105803]
[1767477960229,0.04649842,90445.0,90430.0,0.01116574]
[1767477960975,0.04649842,90445.0,90430.0,0.00010747]
[1767477962116,0.04649842,90445.0,90428.0,0.07190838]
[1767477962336,0.01105632,90446.0,90428.0,0.0219559]
[1767477962538,0.01105632,90446.0,90429.0,0.04691097]
[1767477962944,0.01105632,90446.0,90429.0,0.05796936]
[1767477963161,0.01105644,90445.0,90429.0,0.05796936]
[1767477963716,0.03314185,90444.0,90429.0,0.01105839]
[1767477963915,0.01105644,90445.0,90429.0,0.05796936]
[1767477964069,0.01105619,90447.0,90430.0,0.05796924]
[1767477964771,0.03314185,90445.0,90430.0,0.01105827]
[1767477964954,0.03314185,90445.0,90430.0,0.32575055]
[1767477965538,0.01105619,90447.0,90430.0,0.32575055]
[1767477965769,0.01105632,90446.0,90430.0,0.37266152]
[1767477966089,0.01105632,90446.0,90430.0,0.01105827]
[1767477966299,0.01105632,90446.0,90431.0,0.04691097]
[1767477966834,0.01105644,90445.0,90430.0,0.31469228]
[1767477967038,0.01105656,90444.0,90430.0,0.36160325]
[1767477967237,0.01105644,90445.0,90430.0,0.28155043]
[1767477967238,0.03314185,90443.0,90430.0,0.28155043]
[1767477967596,0.01105656,90444.0,90431.0,0.04691097]
[1767477967897,0.01105656,90444.0,90428.0,4.752e-05]
[1767477968302,0.01105656,90444.0,90429.0,0.04691097]
[1767477968686,0.01105656,90444.0,90428.0,0.01110604]
[1767477968927,0.01105644,90445.0,90429.0,0.01105839]
[1767477969132,0.06633842,90446.0,90429.0,0.01105839]
[1767477969335,0.01105632,90446.0,90430.0,0.01105827]
[1767477969607,0.01105619,90447.0,90431.0,0.01105815]
[1767477969893,0.06633619,90449.0,90432.0,0.04691097]
[1767477970047,0.01105632,90446.0,90432.0,0.04691097]
[1767477970247,0.01105632,90446.0,90430.0,0.31469228]
[1767477970475,0.01105644,90445.0,90431.0,0.04691097]
[1767477971087,0.05527969,90450.0,90431.0,0.04691097]
[1767477971242,0.06633696,90448.0,90433.0,0.04691097]
[1767477971445,0.01105644,90445.0,90433.0,0.04691097]
[1767477971721,0.01105632,90446.0,90433.0,0.04691097]
[1767477971880,0.01105644,90445.0,90433.0,0.04691097]
[1767477972606,0.01105632,90446.0,90433.0,0.04691097]
[1767477974791,0.01105619,90447.0,90433.0,0.04691097]
[1767477978071,0.01105632,90446.0,90433.0,0.04691097]
[1767477980802,0.01105619,90447.0,90433.0,0.04691097]
[1767477980968,0.01105632,90446.0,90433.0,0.04691097]
[1767477982084,0.01105632,90446.0,90430.0,0.32575055]
[1767477982290,0.01105632,90446.0,90430.0,0.31469228]
[1767477982448,0.06634069,90443.0,90428.0,0.04695849]
[1767477982677,0.01105729,90438.0,90428.0,4.752e-05]
[1767477982889,0.01105742,90437.0,90428.0,4.752e-05]
[1767477983086,0.06634365,90439.0,90428.0,4.752e-05]
[1767477983511,0.01105717,90439.0,90428.0,4.752e-05]
[1767477983915,0.01105717,90439.0,90429.0,0.04691097]
[1767477984524,0.01105729,90438.0,90429.0,0.04691097]
[1767477985531,0.01105717,90439.0,90429.0,0.04691097]
[1767477985971,0.01105717,90439.0,90428.0,4.752e-05]
[1767477985972,0.01105754,90436.0,90428.0,4.752e-05]
[1767477986130,0.02212,90435.0,90428.0,4.752e-05]
[1767477986313,0.021121,90435.0,90428.0,4.752e-05]
[1767477986514,0.01105705,90440.0,90429.0,0.04691097]
[1767477986710,0.01105729,90438.0,90431.0,0.04691097]
[1767477986972,0.02212,90439.0,90431.0,0.04681097]
[1767477987757,0.01105729,90438.0,90431.0,0.04681097]
[1767477988444,0.02212,90439.0,90431.0,0.04681097]
[1767477988615,0.03317717,90439.0,90431.0,0.04681097]
[1767477989726,0.01105742,90437.0,90431.0,0.04681097]
[1767477989949,0.03317717,90439.0,90431.0,0.04681097]
[1767477990359,0.01105742,90437.0,90431.0,0.04681097]
[1767477990665,0.01105754,90436.0,90431.0,0.04681097]
[1767477990862,0.01105742,90437.0,90431.0,0.04681097]
[1767477991068,0.03317717,90439.0,90431.0,0.04681097]
[1767477991246,0.01105729,90438.0,90431.0,0.04681097]
[1767477992277,0.03317717,90439.0,90431.0,0.04681097]
[1767477992672,0.01105729,90438.0,90431.0,0.04681097]
[1767477993037,0.03317717,90439.0,90431.0,0.04681097]
[1767477993637,0.01105729,90438.0,90431.0,0.04681097]
[1767477993907,0.03317717,90439.0,90431.0,0.04681097]
[1767477994312,0.02212,90439.0,90431.0,0.04681097]
[1767477994516,0.03317717,90439.0,90431.0,0.04681097]
[1767477995119,0.01105656,90444.0,90431.0,0.04681097]
[1767477995276,0.02212,90443.0,90431.0,0.05786912]
[1767477995458,0.02212,90443.0,90433.0,0.04704283]
[1767477996095,0.0110568,90442.0,90433.0,0.04704283]
[1767477996335,0.03317668,90443.0,90433.0,0.04704283]
[1767477996509,0.0110568,90442.0,90433.0,0.04704283]
[1767477996712,0.0001,90441.0,90427.0,0.01105864]
[1767477997030,5.248e-05,90440.0,90427.0,0.01100616]
[1767477997418,0.00010741,90441.0,90427.0,0.01100616]
[1767477997419,0.00010741,90441.0,90428.0,0.04704283]
[1767478000205,0.00010741,90441.0,90428.0,0.05810135]
[1767478000870,0.00010741,90441.0,90428.0,0.01105852]
[1767478001088,0.00010741,90441.0,90429.0,0.04704283]
[1767478001422,0.02212,90443.0,90435.0,0.04704283]
[1767478001628,0.05527825,90452.0,90435.0,0.05810049]
[1767478001629,0.03490739,90451.0,90435.0,0.05810049]
[1767478001830,0.02212,90450.0,90437.0,0.04704283]
[1767478002228,0.01105619,90447.0,90437.0,0.04704283]
[1767478002470,0.01105619,90447.0,90437.0,0.04604383]
[1767478002647,0.01105632,90446.0,90437.0,0.04604383]
[1767478002864,0.01105644,90445.0,90437.0,0.04604383]
[1767478003668,0.01105619,90447.0,90437.0,0.04604383]
[1767478005038,0.01105607,90448.0,90437.0,0.04604383]
[1767478005196,0.01105595,90449.0,90437.0,0.04604383]
[1767478005393,0.02385448,90451.0,90437.0,0.04604383]
[1767478005595,0.02385448,90454.0,90450.0,0.000999]
[1767478005793,0.02385448,90454.0,90445.0,0.04704283]
[1767478005794,0.01105534,90454.0,90445.0,0.04704283]
[1767478006016,0.01116283,90454.0,90445.0,0.04604383]
[1767478006509,0.01105546,90453.0,90445.0,0.04604383]
[1767478006885,0.03490994,90453.0,90445.0,0.04604383]
[1767478007096,0.01105595,90449.0,90445.0,0.04604383]
[1767478007305,0.01105583,90450.0,90445.0,0.03704282]
[1767478007693,0.06633517,90450.0,90434.0,0.04704283]
[1767478008093,0.01105595,90449.0,90434.0,0.04704283]
[1767478008300,0.01105607,90448.0,90434.0,0.04704283]
[1767478008415,0.01105595,90449.0,90434.0,0.04704283]
[1767478010801,0.01076776,90449.0,90434.0,0.04704283]
[1767478014287,0.01105607,90448.0,90433.0,0.01105791]
[1767478014670,0.01076776,90449.0,90434.0,0.04704283]
[1767478015047,0.04632686,90448.0,90433.0,0.01105791]
[1767478015560,0.05738293,90448.0,90433.0,0.01105791]
[1767478015942,0.04632686,90448.0,90433.0,0.01105791]
[1767478016142,0.04632686,90448.0,90434.0,0.01105778]
[1767478017516,0.01105583,90450.0,90434.0,0.05810061]
[1767478018030,0.01105607,90448.0,90434.0,0.04704283]
[1767478018442,0.01105595,90449.0,90434.0,0.04704283]
[1767478020482,0.01105632,90446.0,90434.0,0.04704283]
[1767478020703,0.01105644,90445.0,90434.0,0.04704283]
[1767478020903,0.01105656,90444.0,90434.0,0.04704283]
[1767478021329,0.01105619,90447.0,90434.0,0.04704283]
[1767478022482,0.01105607,90448.0,90434.0,0.04704283]
[1767478023101,0.05818585,90447.0,90432.0,0.01105803]
[1767478023298,0.05818585,90447.0,90430.0,0.02925793]
[1767478023489,0.02212,90446.0,90430.0,0.02925793]
[1767478023692,0.02212,90446.0,90431.0,0.01105815]
[1767478024194,0.02212,90446.0,90432.0,0.01105803]
[1767478024765,0.02212,90446.0,90432.0,0.05616683]
[1767478025470,0.02212,90446.0,90434.0,0.0451088]
[1767478026857,0.02212,90446.0,90434.0,0.05616658]
[1767478027194,0.02212,90446.0,90434.0,0.0451088]
[1767478027745,0.02212,90446.0,90434.0,0.05616658]
[1767478027952,0.02212,90446.0,90434.0,0.0451088]
[1767478036531,0.02212,90446.0,90434.0,0.05616658]
[1767478036831,0.02212,90446.0,90434.0,0.0451088]
[1767478037035,0.02212,90446.0,90434.0,0.05616658]
[1767478038078,0.02212,90446.0,90436.0,0.0451088]
[1767478040185,0.02212,90446.0,90435.0,0.01105766]
[1767478041555,0.02212,90446.0,90436.0,0.01105754]
[1767478041689,0.02212,90446.0,90436.0,0.0451088]
[1767478043260,0.02212,90446.0,90435.0,0.01105766]
[1767478045007,0.02212,90446.0,90436.0,0.0451088]
[1767478045170,0.02212,90446.0,90436.0,0.05616634]
[1767478045582,0.02212,90446.0,90436.0,0.0451088]
[1767478046709,0.02212,90446.0,90436.0,0.05616634]
[1767478047263,0.02212,90446.0,90436.0,0.0451088]
[1767478047462,0.02212,90446.0,90436.0,0.05616634]
[1767478048074,0.02212,90446.0,90436.0,0.0451088]
[1767478052067,0.02212,90446.0,90436.0,0.05616634]
[1767478052190,0.02212,90446.0,90436.0,0.0451088]
[1767478054459,0.02212,90446.0,90436.0,0.05616634]
[1767478055129,0.02212,90446.0,90436.0,0.0451088]
[1767478055472,0.02212,90446.0,90438.0,0.04713126]
[1767478058049,0.02387033,90449.0,90442.0,0.04713126]
[1767478058270,0.02212,90448.0,90442.0,0.04713126]
[1767478065541,0.02212,90448.0,90437.0,0.01105742]
[1767478065749,0.02212,90448.0,90438.0,0.01105729]
[1767478065943,0.02212,90448.0,90437.0,0.01105742]
[1767478067490,0.02212,90448.0,90438.0,0.01105729]
[1767478067922,0.02212,90448.0,90439.0,0.01105717]
[1767478068418,0.02212,90448.0,90438.0,0.01105729]
[1767478068613,0.02212,90448.0,90439.0,0.01105717]
[1767478068966,0.02212,90448.0,90440.0,0.01105705]
[1767478069162,0.02212,90448.0,90439.0,0.01105717]
[1767478069388,0.02212,90448.0,90440.0,0.01105705]
[1767478069786,0.02212,90448.0,90440.0,0.04713126]
[1767478071325,0.02212,90448.0,90440.0,0.05818831]
[1767478071920,0.02212,90448.0,90440.0,0.04713126]
[1767478080069,0.02387033,90453.0,90440.0,0.04713126]
[1767478080242,0.02212,90449.0,90440.0,0.04713126]
[1767478082876,0.03316058,90472.0,90440.0,0.04713126]
[1767478082877,0.0001518,90460.0,90453.0,0.01105546]
[1767478083095,0.0001518,90460.0,90450.0,0.01105583]
[1767478083096,0.02984341,90471.0,90457.0,0.05954851]
[1767478083296,0.02212,90470.0,90458.0,0.01105485]
[1767478083534,0.02212,90469.0,90457.0,0.05954851]
[1767478083922,0.02212,90469.0,90457.0,0.04849354]
[1767478083923,0.02202,90469.0,90457.0,0.04849354]
[1767478084052,7.919e-05,90471.0,90457.0,0.05926044]
[1767478084254,0.02212,90468.0,90457.0,0.04820547]
[1767478085063,0.02212,90468.0,90457.0,0.05926044]
[1767478085486,0.02212,90468.0,90457.0,0.04820547]
[1767478085802,0.02212,90468.0,90457.0,0.05926044]
[1767478088035,0.02212,90468.0,90457.0,0.01105497]
[1767478089392,0.02212,90468.0,90457.0,0.05954851]
[1767478090876,0.02212,90467.0,90457.0,0.05954851]
[1767478091772,0.02212,90467.0,90457.0,0.04849354]
[1767478093535,0.02212,90467.0,90458.0,0.04849354]
[1767478093915,0.02212,90467.0,90458.0,0.05954839]
[1767478094181,0.02212,90467.0,90458.0,0.04849354]
[1767478095185,0.02212,90467.0,90458.0,0.05954839]
[1767478095579,7.919e-05,90471.0,90459.0,0.01105473]
[1767478095777,0.02212,90466.0,90461.0,0.01105448]
[1767478096161,7.919e-05,90471.0,90461.0,0.01105448]
[1767478096364,0.02212,90470.0,90461.0,0.01105448]
[1767478096894,0.02212,90469.0,90460.0,0.0110546]
[1767478097218,0.02212,90469.0,90460.0,0.32576185]
[1767478097419,0.02212,90469.0,90460.0,0.32567108]
[1767478097764,0.02212,90469.0,90461.0,0.01105448]
[1767478098189,0.02212,90469.0,90461.0,0.01076641]
[1767478098372,0.02212,90469.0,90460.0,0.32567108]
[1767478099115,7.919e-05,90471.0,90460.0,0.32567108]
[1767478099315,0.02212,90468.0,90460.0,0.32567108]
[1767478099671,0.02212,90468.0,90460.0,0.31470725]
[1767478099905,0.02212,90467.0,90460.0,0.32576185]
[1767478100112,0.02212,90467.0,90458.0,0.05954839]
[1767478100332,0.000999,90460.0,90457.0,0.01105497]
[1767478100681,0.02212,90467.0,90457.0,0.01105497]
[1767478101090,0.02212,90467.0,90457.0,0.05954851]
[1767478101522,0.02212,90467.0,90458.0,0.01105485]
[1767478103267,0.02212,90467.0,90457.0,0.05954851]
[1767478103833,0.02212,90467.0,90457.0,0.04849354]
[1767478104044,0.02212,90467.0,90457.0,0.04749454]
[1767478104244,0.02212,90467.0,90454.0,0.01105534]
[1767478105089,0.02212,90467.0,90455.0,0.01105522]
[1767478105921,0.02212,90467.0,90454.0,0.01105534]
[1767478106302,0.02212,90467.0,90455.0,0.01105522]
[1767478107040,0.02212,90467.0,90454.0,0.01105534]
[1767478107227,0.02212,90467.0,90455.0,0.01105522]
[1767478107390,0.02212,90467.0,90454.0,0.01105534]
[1767478107784,0.02212,90467.0,90455.0,0.01105522]
[1767478108091,0.02212,90467.0,90454.0,0.01105534]
[1767478108469,0.02212,90467.0,90454.0,0.0107673]
[1767478109716,0.02212,90467.0,90455.0,0.01105522]
[1767478110738,0.02212,90467.0,90455.0,0.01076722]
[1767478111146,0.02212,90467.0,90455.0,0.01047923]
[1767478111381,0.02212,90467.0,90455.0,0.01019125]
[1767478111533,0.02212,90467.0,90454.0,0.0107673]
[1767478111933,0.02212,90467.0,90455.0,0.01105522]
[1767478112132,0.02212,90467.0,90457.0,0.01105497]
[1767478112533,0.02212,90466.0,90457.0,0.01105497]
[1767478112737,0.02212,90466.0,90456.0,0.01105509]
[1767478113205,0.02212,90466.0,90456.0,0.0110097]
[1767478113836,0.02212,90466.0,90455.0,0.05660077]
[1767478115430,0.02212,90466.0,90456.0,0.01105509]
[1767478115788,0.02212,90466.0,90455.0,0.05660077]
[1767478115941,0.02212,90466.0,90456.0,0.01105509]
[1767478116278,0.02212,90466.0,90455.0,0.05660077]
[1767478119098,0.02212,90466.0,90456.0,0.01105509]
[1767478119669,0.02212,90466.0,90455.0,0.05660077]
[1767478120928,0.02212,90466.0,90455.0,0.04554555]
[1767478121578,0.02212,90466.0,90454.0,0.01105534]
[1767478122813,0.02212,90466.0,90452.0,0.01105558]
[1767478122814,0.0486076,90465.0,90452.0,0.01105558]
[1767478123568,0.0486076,90465.0,90452.0,0.01076769]
[1767478123865,0.0486076,90465.0,90453.0,0.01076758]
[1767478124318,0.0486076,90465.0,90454.0,0.01105534]
[1767478124459,0.0486076,90465.0,90455.0,0.01105522]
[1767478125118,0.02212,90466.0,90456.0,0.01105509]
[1767478125693,0.02212,90465.0,90456.0,0.01105509]
[1767478126064,0.02387176,90468.0,90456.0,0.0107673]
[1767478126434,0.02212,90464.0,90456.0,0.0107673]
[1767478126659,0.02212,90464.0,90457.0,0.01105497]
[1767478126902,0.02212,90463.0,90458.0,0.01105485]
[1767478127509,0.02212,90463.0,90457.0,0.0107672]
[1767478128049,0.02387176,90468.0,90457.0,0.0107672]
[1767478128258,0.02212,90467.0,90458.0,0.01105485]
[1767478128462,0.02212,90467.0,90459.0,0.01105473]
[1767478128868,0.02212,90467.0,90459.0,0.04554555]
[1767478129065,0.02212,90466.0,90459.0,0.04554555]
[1767478129275,0.02212,90465.0,90459.0,0.05660028]
[1767478129476,7.919e-05,90471.0,90459.0,0.05660028]
[1767478129694,7.919e-05,90471.0,90459.0,0.04554555]
[1767478129985,0.02212,90470.0,90459.0,0.04554555]
[1767478130187,7.919e-05,90471.0,90459.0,0.05660028]
[1767478130386,0.02212,90470.0,90459.0,0.05660028]
[1767478131394,0.02212,90470.0,90459.0,0.04554555]
[1767478131595,0.02212,90469.0,90459.0,0.04554555]
[1767478132016,0.02212,90469.0,90459.0,0.05660028]
[1767478132359,7.919e-05,90471.0,90459.0,0.05660028]
[1767478132501,7.919e-05,90471.0,90459.0,0.04554555]
[1767478132502,0.02212,90468.0,90459.0,0.04554555]
[1767478133538,0.02212,90468.0,90459.0,0.05660028]
[1767478133838,7.919e-05,90471.0,90459.0,0.05660028]
[1767478134223,0.02212,90470.0,90459.0,0.05660028]
[1767478137487,0.02212,90470.0,90459.0,0.05650947]
[1767478137890,0.02212,90470.0,90459.0,0.04545474]
[1767478139146,0.02212,90470.0,90459.0,0.05650947]
[1767478139378,0.02212,90470.0,90461.0,0.04554555]
[1767478141717,7.919e-05,90471.0,90461.0,0.05660003]
[1767478141916,0.02212,90470.0,90461.0,0.05660003]
[1767478142116,7.919e-05,90471.0,90463.0,0.01105424]
[1767478142322,0.02212,90470.0,90462.0,0.01105436]
[1767478142527,7.919e-05,90471.0,90462.0,0.01105436]
[1767478142709,0.02212,90470.0,90462.0,0.01105436]
[1767478142907,0.02212,90470.0,90461.0,0.05660003]
[1767478143972,0.02212,90470.0,90461.0,0.04554555]
[1767478146268,0.02212,90470.0,90461.0,0.05660003]
[1767478146884,0.02212,90470.0,90461.0,0.04554555]
[1767478148414,7.919e-05,90471.0,90461.0,0.04554555]
[1767478148616,0.02212,90469.0,90461.0,0.04554555]
[1767478148916,0.02212,90468.0,90458.0,0.01105485]
[1767478149125,0.02212,90468.0,90459.0,0.01105473]
[1767478150265,0.02212,90468.0,90458.0,0.01105485]
[1767478150424,0.02212,90468.0,90459.0,0.01105473]
[1767478154497,0.02212,90468.0,90458.0,0.01105485]
[1767478155982,0.02212,90468.0,90452.0,0.11447914]
[1767478156334,0.02212,90468.0,90458.0,0.04814596]
[1767478156534,0.02212,90468.0,90459.0,0.01105473]
[1767478157100,7.919e-05,90471.0,90458.0,0.04814596]
[1767478157480,0.02212,90467.0,90456.0,0.01105509]
[1767478157929,0.02212,90467.0,90457.0,0.04814596]
[1767478158611,0.02212,90467.0,90456.0,0.01105509]
[1767478158813,0.01105338,90470.0,90456.0,0.01105509]
[1767478159023,0.02212,90468.0,90456.0,0.01105509]
[1767478159231,0.02212,90468.0,90455.0,0.01105522]
[1767478160029,0.03499776,90471.0,90456.0,0.05920105]
[1767478160235,0.02212,90468.0,90457.0,0.01105497]
[1767478160444,0.02212,90468.0,90456.0,0.05920105]
[1767478160599,0.02212,90468.0,90458.0,0.01105485]
[1767478160816,0.01113245,90471.0,90457.0,0.01105497]
[1767478161064,0.02212,90470.0,90457.0,0.01105497]
[1767478161548,0.02212,90469.0,90456.0,0.05920105]